{"text_format":"1","workbook":"xlsx","n_sheets":1,"sheets":["4 класс (2)"],"not_rendered":{"charts":0,"images":0,"macros":1,"external_links":1,"defined_names":3,"comments":0,"pivot_tables":0},"unopened":[],"bounds":{"document_bytes":16777216,"sheet_cells":100000,"rows_first":2000,"rows_last":500,"rows_between":2000,"halvings":0,"cell_chars":16384,"cell_head_chars":4096},"cells_cut":0,"cells_raw":0,"read":"whole","date_system":"1900"}

{"sheet":"4 класс (2)","index":0,"n_rows":145,"n_cols":18,"rows_kept":145,"cut":false,"hidden":false,"merged":[]}
[null,null,null,"Предварительные результаты муниципального этапа  олимпиады школьников по русскому языку для обучающихся 4 классов"]
[null,"Дата","место проведения",null,null,null,null,null,"Председатель"]
[null,"2025-02-19","МАОУ СШ № 149",null,null,null,null,null,"Ронских Ирина Владимировна"]
["№","Район","ФИО","Образовательная организация","Шифр","Задание 1 (7 б)","Задание 2 (3 б)","Задание 3 (12 б)","Задание 4 (24 б)","Задание 5 (2 б)","Задание 6 (12 б)","Задание 7 (6 б)","Задание 8 (18 б)","Задание 9 (1 Б)","ИТОГО (85 ,)","Тип диплома","Учитель-наставник  (ФИО полностью)","Учитель-наставник (ФИО полностью) - если два наставника!"]
[1,"Свердловский","Убиенных Я.А",null,2007,5,1,9,15,1,12,6,18,1,{"$f":"SUM(F5:N5)","v":68},null,"Смолякова Галина Александровна"]
[2,"Советский","Куприянов Ф.А",null,2031,4,0,12,12,1,12,6,18,1,66,null,"Щукина Наталия Васильевна"]
[3,"Центральный","Потёмкин А.П",null,2033,2,1,12,12,2,12,6,18,1,66,null,"Гаврилова Регина Витальевна"]
[4,"Октябрьский","Шелковникова Э.О",null,2053,4,2,12,9,2,12,6,18,1,66,null,"Липатова Оксана Владимировна"]
[5,"Свердловский","Парнищева А.В",null,2058,5,0,9,15,1,12,6,15,1,64,null,"Смолякова Галина Александровна"]
[6,"Советский","Метелёва А.А",null,2052,5,1,9,9,2,12,6,18,1,63,null,"Королёва Ксения Андреевна"]
[7,"Советский","Перегудов Н.П",null,2098,4,2,9,9,1,12,6,18,1,62,null,"Левшова Ольга Викторовна"]
[8,"Свердловский","Байков М.Д",null,2035,6,0,6,15,1,12,6,15,1,62,null,"Корнеева Элеонора Викторовна"]
[9,"Советский","Подоляк Ю.А",null,20312,3,2,12,9,2,9,6,18,1,62,null,"Жидяева Светлана Александровна"]
[10,"Октябрьский","Машуков И.Р",null,2008,6,3,9,12,0,9,6,15,1,61,null,"Белан татьяна Леонидовна"]
[11,"Свердловский","Шпак Н.Г",null,2023,6,2,6,12,2,8,6,18,1,61,null,"Корнеева Элеонора Викторовна"]
[12,"ЖД","Игнатьева К.А",null,2029,7,0,9,6,1,12,6,18,1,60,null,"Гайнутдинова Анастасия Андреевна"]
[13,"Октябрьский","Ерёмина Е.С",null,2005,4,1,6,9,1,12,6,18,1,58,null,"Авдеева Елена Владимировна"]
[14,"Советский","Матвеева Д.Д",null,2063,3,3,6,12,0,12,6,15,1,58,null,"Альтергот Мария Эвальдовна"]
[15,"Свердловский","Головизнин Т.И",null,20711,5,1,9,12,0,12,6,12,1,58,null,"Золотухина Татьяна Владимировна"]
[16,"Свердловский","Евсеев И.А",null,20313,7,2,6,9,0,8,6,18,1,57,null,"Лапина Наталья Викторовна"]
[17,"Советский","Верхотуров С.В",null,20314,3,0,9,9,2,12,6,15,1,57,null,"Невестенко Анастасия Сергеевна"]
[18,"Свердловский","Пехтелева В.В",null,20812,5,2,9,6,1,9,6,18,1,57,null,"Лапина Наталья Викторовна"]
[19,"Ленинский","Сазонова А.Н",null,1011,5,1,3,12,1,12,3,18,1,56,null,"Брагина Елена Александровна "]
[20,"Кировский","Извекова К.С",null,2034,4,1,12,6,2,6,6,18,1,56,null,"Михайленко Елена Викторовна"]
[21,"ЖД","Кириллов М.А",null,2085,7,2,6,6,1,9,6,18,1,56,null,"Ивакина Марина Владимировна "]
[22,"Центральный","Иванов А.О",null,2077,6,2,6,12,1,9,6,12,1,55,null,"Брюханова Светлана Викторовна"]
[23,"Свердловский","Юнг А.В",null,20910,7,1,6,6,1,12,6,15,1,55,null,"Рукосуева Наталья Геннадьевна"]
[24,"Кировский","Тузов А.С",null,20512,6,0,9,9,2,9,6,12,1,54,null,"Левченко Ольга Степановна"]
[25,"Советский","Медяников М.С",null,2069,4,3,6,3,0,12,6,18,1,53,null,"Першакова Наталья Сергеевна"]
[26,"Октябрьский","Нечаев С.Д",null,2064,3,1,12,6,0,12,0,17,1,52,null,"Исакова Ольга Федоровна"]
[27,"Свердловский","Шабанова К.К",null,20613,6,1,12,3,2,6,6,15,1,52,null,"Романова Елена Владимировна"]
[28,"Советский","Федулова А.О",null,20716,1,2,6,9,0,12,3,18,1,52,null,"Горлина Ольга Алексеевна"]
[29,"Советский","Биткин Г.Д",null,2086,7,0,3,9,0,11,6,15,0,51,null,"Рыбакова Анна Васильевна"]
[30,"Центральный","Заборцев М.М",null,2081,4,0,12,6,0,9,6,12,1,50,null,"Биктагирова Рузиля Нурулловна"]
[31,"Октябрьский","Жихарев М.А",null,2074,5,2,6,6,0,6,6,18,0,49,null,"Левчено Галина Степановна"]
[32,"ЖД","Журов А.В",null,20514,2,2,6,9,2,12,0,15,1,49,null,"Винокурова Юлия Ивановна"]
[33,"Октябрьский","Дайтов М.Ш",null,20811,6,0,9,3,0,12,0,18,1,{"$f":"SUM(F37:N37)","v":49},null,"Агеева Анна Александровна"]
[34,"Ленинский","Петрович Ю.А",null,2066,6,0,9,3,0,9,6,15,0,48,null,"Селиванова Анна Валериевна"]
[35,"Центральный","Егорова Е.С",null,20612,4,1,12,0,0,12,6,12,1,48,null,"Воробьева Марина Борисовна"]
[36,"Советский","Матюшин М.В",null,20715,6,1,6,9,2,12,0,12,0,48,null,"Григорьева Галина Владимировна"]
[37,"Советский","Якупова К.Р",null,20816,4,1,6,6,0,9,3,18,1,48,null,"Кочнева Татьяна Георгиевна"]
[38,"Советский","Зайков Г.Ю",null,20911,5,2,6,3,1,9,3,18,1,48,null,"Изохватова Зинаида Александровна"]
[39,"Советский","Суслякова А.И",null,2004,3,1,6,6,1,6,6,17,1,47,null,"Осетрова Надежда Алексеевна"]
[40,"Советский","Козлова Е.А",null,2037,3,0,6,6,1,12,6,12,1,47,null,"Дмитриева Ольга Владимировна"]
[41,"Советский","Соколова К.В",null,20710,5,2,9,3,0,9,6,12,1,47,null,"Белоус Светлана Алексеевна"]
[42,"Советский","Лузянин А.М",null,20815,5,1,3,9,1,3,6,18,1,47,null,"Высотина Светлана Владимировна"]
[43,"ЖД","Коченова М.М",null,2076,6,0,6,6,0,12,6,9,0,45,null,"Андронова Анна Юрьевна"]
[44,"Октябрьский","Подгурская М.П",null,2089,5,0,6,6,0,12,0,15,0,44,null,"Баландина Таисия Николаевна"]
[45,"ЖД","Грудцын К.Е",null,20311,4,1,6,12,0,3,6,12,0,44,null,"Балысова Марина Николаевна"]
[46,"ЖД","Романенко А.Д",null,2094,5,0,3,12,1,3,6,12,1,43,null,"Ивакина Марина Владимировна "]
[47,"Свердловский","Иванова С.А",null,20810,5,0,6,3,1,9,6,12,1,43,null,"Дудникова Татьяна Ивановна"]
[48,"Ленинский","Климов И.А",null,2099,3,1,6,3,2,12,0,15,0,42,null,"Григорова Елена Геннадьевна"]
[49,"Советский","Иванова В.И",null,20717,3,1,9,3,1,6,6,12,1,42,null,"Сергиенко Виктория Николаевна"]
[50,"Кировский","Носков Г.С",null,2027,4,1,6,6,2,9,6,6,1,41,null,"Зражевская Татьяна Ильинична"]
[51,"Ленинский","Кузнецов К.С",null,2054,4,0,6,6,0,12,0,12,1,41,null,"Патрушева Елена Викторовна"," Ковалева Галина Васильевна."]
[52,"Советский","Краснова В.С",null,20712,6,1,3,3,0,6,3,18,1,41,null,"Зыблева Светлана Георгиевна"]
[53,"Советский","Кравченко Е.А",null,2056,4,0,3,6,1,9,3,12,0,38,null,"Таровик Оксана Юрьевна"]
[54,"Советский","Безбражная О.Ю",null,20212,6,2,6,3,2,9,3,6,1,38,null,"Жидяева Светлана Александровна"]
[55,"Кировский","Пузикова К.А",null,20013,3,2,6,6,1,3,0,15,1,37,null,"Шмидт Ольга Николаевна"]
[56,"Октябрьский","Гракова Е.В",null,20315,4,2,3,3,1,12,6,6,0,37,null,"Бородина Наталья Сергеевна"]
[57,"ЖД","Некрасов Д.Р",null,20615,3,2,3,12,1,6,3,6,1,37,null,"Винокурова Юлия Ивановна"]
[58,"Советский","Никитин И.М",null,2061,3,2,6,12,0,6,0,6,1,36,null,"Шевеленкова Елена Валерьевна"]
[59,"Свердловский","Щербаков С.В",null,2065,5,2,6,0,0,6,6,10,1,36,null,"Суркова Елена Владимировна"]
[60,"Центральный","Вэнго С.В",null,20011,6,0,3,9,0,6,6,6,0,36,null,"Янчук Валентина Александровна"]
[61,"Свердловский","Ошлокова А.И",null,2036,4,1,6,3,2,3,6,9,1,35,null,"Познахарева Анастасия Николаевна"]
[62,"Октябрьский","Просалова К.А",null,2095,7,3,6,3,0,6,6,3,1,35,null,"Шавронская Ольга Александровна"]
[63,"Октябрьский","Давыдов Р.Е",null,2021,0,0,6,3,1,12,0,12,0,34,null,"Карасева Ирина Алексеевна"]
[64,"Кировский","Чигинева Т.А",null,2022,5,0,6,3,1,6,6,6,1,34,null,"Михайлова Нина Владимировна"]
[65,"ЖД","Олифиренко М.Е",null,2039,4,1,9,6,1,6,6,0,1,{"$f":"SUM(F69:N69)","v":34},null,"Савина Людмила Ивановна"]
[66,"Центральный","Сыпухин Д.А",null,20912,4,3,6,9,0,6,0,6,0,34,null,"Шахворостова Алёна Владимировна"]
[67,"Октябрьский","Козырева Е.А",null,20913,4,2,6,0,1,6,0,15,0,34,null,"Неизвестная Светлана Викторовна"]
[68,"Центральный","Карпенко Ю.Б",null,2059,6,0,9,3,0,9,3,3,0,33,null,"Матюшина Ирина Викторовна"]
[69,"Кировский","Ковригина К.В",null,2062,4,0,3,6,1,6,6,6,1,33,null,"Еременко Ольга Викторовна"]
[70,"Кировский","Тимофеева Д.П",null,2092,7,1,6,6,0,0,6,6,1,33,null,"Михайлова Нина Владимировна"]
[71,"Ленинский","Рыжкова В.А",null,20215,5,0,3,3,0,3,6,12,1,33,null,"Кардакова Оксана Анатольевна"]
[72,"Советский","Вальчук Д.Д",null,20813,3,1,6,6,2,12,0,3,0,33,null,"Фискова Алёна Михайловна"]
[73,"Кировский","Симаченко А.С",null,2038,3,2,0,6,0,12,0,9,0,32,null,"Глазкова Анна Сергеевна"]
[74,"Центральный","Матвеева В.Е",null,20211,3,1,6,6,0,3,0,12,1,32,null,"Спивакова Ирина Николаевна"]
[75,"Свердловский","Осин Т.Н",null,20511,3,1,3,6,1,9,0,9,0,32,null,"Лапина Наталья Викторовна"]
[76,"Советский","Ледникова М.А",null,2001,4,0,6,9,2,6,3,0,1,31,null,"Маскадынова Назира Мирсаетов"]
[77,"Октябрьский","Клочкова К.И",null,2028,3,0,3,6,2,6,6,3,1,30,null,"Зыкова Дарья Дмитриевна","Ковалева Галина Васильевна."]
[78,"Советский","Буднякова М.А",null,2051,4,1,6,3,1,6,3,6,0,30,null,"Альтергот Мария Эвальдовна"]
[79,"Ленинский","Кучер Э.П",null,2078,3,2,3,3,0,0,6,12,1,30,null,"Дмитриева Ирина Константиновна"]
[80,"Свердловский","Чустугешева С.В",null,2075,4,0,3,0,1,3,0,18,0,29,null,"Лапина Наталья Викторовна"]
[81,"Октябрьский","Башканов С.Я",null,20614,5,0,6,3,0,9,0,5,1,29,null,"Петлеванная Елена Петровна"]
[82,"Ленинский","Радченко И.Д",null,2084,3,1,3,6,0,5,6,3,0,27,null,"Образцова Людмила Валерьевна"]
[83,"Кировский","Маликова В.Е",null,20718,7,2,5,3,1,0,6,3,0,27,null,"Харлашина Елена Анатольевна"]
[84,"ЖД","Нестерова Ю.А",null,2009,4,0,3,6,0,3,0,9,1,26,null,"Рахманова Оксана Владимировна"]
[85,"Советский","Венедиктов М.В",null,2024,4,2,2,6,2,3,0,6,1,26,null,"Боярова Яна Олеговна"]
[86,"Советский","Плехов Я.Е",null,2079,4,0,6,3,0,6,0,6,1,26,null,"Хисматулина Фания Хасметовна"]
[87,"Кировский","Мурникова В.В",null,2082,4,0,3,0,0,12,0,6,0,25,null,"Михайлова Нина Владимировна"]
[88,"Советский","Рутковский А.В",null,2025,5,0,3,6,1,6,3,0,0,24,null,"Синичкина Юлия Евгеньевна"]
[89,"Советский","Гасанова Н.Э",null,20014,3,0,9,0,0,8,3,0,1,24,null,"Исаева Наталья Георгиевна"]
[90,"Свердловский","Степанова М.А",null,2096,6,0,5,0,0,0,3,9,0,23,null,"Фёклина Ольга Анатольевна"]
[91,"Свердловский","Чернова А.А",null,20213,5,0,6,6,0,6,0,0,0,23,null,"Третьякова Антонина Юрьевна"]
[92,"Свердловский","Рассалюк Н.В",null,20611,5,0,6,0,0,9,0,3,0,23,null,"Лапина Наталья Викторовна"]
[93,"Советский","Березовая Е.А",null,2055,3,0,6,3,1,6,0,3,0,22,null,"Дмитриева Ольга Владимировна"]
[94,"ЖД","Меньков А.Д",null,20210,4,2,6,3,1,6,0,0,0,22,null,"Залалутдинова Раиса Вагизовна"]
[95,"Кировский","Требко Н.В",null,2003,4,2,0,9,0,0,6,0,0,21,null,"Кизелевич Татьяна Ивановна"]
[96,"Ленинский","Харанжевич В.К",null,2006,5,2,3,6,1,0,0,3,1,21,null,"Чукавина Маргарита Александровна"]
[97,"Ленинский","Романенко М.П",null,2068,2,1,6,3,0,3,6,0,0,{"$f":"SUM(F101:N101)","v":21},null,"Викулова Наталья Ивановна"]
[98,"Октябрьский","Колтунчик А.Д",null,20316,3,0,3,9,0,0,6,0,0,21,null,"Харсекина Ирига Викторовна"]
[99,"Октябрьский","Григорьева К.В",null,2002,7,1,6,3,0,2,0,0,1,20,null,"Карасева Ирина Алексеевна"]
[100,"Советский","Грицевич А.Е",null,2067,2,0,6,3,2,3,0,3,1,20,null,"Горлина Ольга Алексеевна"]
[101,"Кировский","Касьянова В.С",null,20510,3,0,0,6,0,0,6,5,0,20,null,"Склярова Лариса Николаевна"]
[102,"Кировский","Дос-Сантос М.Р",null,20714,4,0,3,0,0,3,6,3,1,20,null,"Плешивцева Татьяна Сергеевна"]
[103,"Ленинский","Бариловский М.Д",null,2097,2,0,3,3,0,3,0,8,0,19,null,"Чукавина Маргарита Александровна"]
[104,"Свердловский","Гуляев М.В",null,20214,5,0,3,3,1,6,0,0,1,19,null,"Лапина Наталья Викторовна"]
[105,"Свердловский","Егорова Р.Н",null,20010,6,0,0,6,0,0,0,6,0,18,null,"Лапина Наталья Викторовна"]
[106,"Ленинский","Аракелян Л.А",null,2087,4,1,2,6,0,0,0,3,1,17,null,"Григорова Елена Геннадьевна"]
[107,"Советский","Коренева В.Е",null,2088,4,0,6,0,1,6,0,0,0,17,null,"Сапожникова Ольга Васильевна"]
[108,"Ленинский","Талыпов А.Е",null,20616,3,2,6,0,0,3,0,3,0,17,null,"Гребнева Марина Васильевна"]
[109,"Кировский","Ермолаев А.С",null,2083,3,0,3,3,0,3,0,3,0,15,null,"Сахарчук Екатерина Николаевна"]
[110,"Советский","Пучков А.А",null,20814,3,0,6,3,0,0,0,2,1,15,null,"Зыблева Светлана Георгиевна"]
[111,"Октябрьский","Васильева А.С",null,2057,3,0,6,3,1,0,0,0,1,14,null,"Шмидт Александра Олеговна"]
[112,"Советский","Бумаженко К.Е",null,2093,3,0,6,3,1,0,0,0,0,13,null,"Смыслова Екатерина Юрьевна"]
[113,"Ленинский","Паучек В.В",null,2032,5,0,3,0,0,0,3,0,1,12,null,"Татаринцева Любовь Васильевна"]
[114,"Советский","Якимова Я.А",null,2091,3,0,0,2,0,0,6,0,1,12,null,"Маскадынова Назира Мирсаетов"]
[115,"Октябрьский","Проскурин И.",null,20310,3,0,0,3,0,3,3,0,0,12,null,"Степанова Татьяна Сергеевна"]
[116,"Кировский","Лапшина С.В",null,20610,2,1,2,3,0,3,0,0,1,12,null,"Склярова Лариса Николаевна"]
[117,"Свердловский","Фетисов Г.М",null,20012,5,0,3,3,0,0,0,0,0,11,null,"Покарева Татьяна Ивановна"]
[118,"Советский","Мартыненко С.Д",null,2026,3,1,3,3,0,0,0,0,0,10,null,"Исаева Наталья Георгиевна"]
[119,"Октябрьский","Моргунов А.С",null,20216,2,0,0,3,0,0,0,0,1,6,null,"Харсекина Ирига Викторовна"]
[121,"Советский",null,"МАОУ СШ № 134 г. Красноярск",null,null,null,null,null,null,null,null,null,null,0,"неявка","Вардугина Татьяна Сергеевна"]
[122,"Свердловский",null,"МАОУ СШ № 23 г. Красноярск",null,null,null,null,null,null,null,null,null,null,0,"неявка","Рудь Юлия Анатольевна"]
[124,"Советский",null,"МАОУ СШ № 141 г. Красноярск",null,null,null,null,null,null,null,null,null,null,0,"неявка","Петрова Оксана Владимировна"]
[125,"ЖД",null,"МАОУ Лицей № 28 г. Красноярск",null,null,null,null,null,null,null,null,null,null,0,"неявка","Пурсенко Галина Васильевна"]
[126,"Ленинский",null,"МАОУ СШ № 16 г. Красноярск",null,null,null,null,null,null,null,null,null,null,0,"неявка","Назаренко Татьяна Валентиновна"]
[127,"Свердловский",null,"МАОУ СШ № 17 г. Красноярск",null,null,null,null,null,null,null,null,null,null,0,"неявка","Зимина Виктория Александровна"]
[128,"Советский",null,"МАОУ СШ № 156 г. Красноярск",null,null,null,null,null,null,null,null,null,null,0,"неявка","Староверова Светлана Витальевна"]
[129,"Ленинский",null,"МБОУ СШ № 79 г. Красноярск",null,null,null,null,null,null,null,null,null,null,{"$f":"SUM(F131:N131)","v":0},"неявка","Латышева Анастасия Владиславовна "]
[130,"Октябрьский",null,"МАОУ СШ № 72 им. М.Н. Толстихина г. Красноярск",null,null,null,null,null,null,null,null,null,null,0,"неявка","Герасимова Людмила Александровна"]
[131,"Октябрьский",null,"МАОУ Гимназия № 13 «Академ» г. Красноярск",null,null,null,null,null,null,null,null,null,null,0,"неявка","Цих Галина Афанасьевна "]
[132,"Советский",null,"МАОУ СШ № 144 г. Красноярск",null,null,null,null,null,null,null,null,null,null,0,"неявка","Маскадынова Назира Мирсаетов"]
[133,"Ленинский",null,"МАОУ СШ № 16 г. Красноярск",null,null,null,null,null,null,null,null,null,null,0,"неявка","Назаренко Татьяна Валентиновна"]
[134,"Ленинский",null,"МБОУ СШ № 31 г. Красноярск",null,null,null,null,null,null,null,null,null,null,0,"неявка","Кудряшова Марина Анатольевна"]
[135,"Советский",null,"МАОУ СШ № 157 г. Красноярск",null,null,null,null,null,null,null,null,null,null,0,"неявка","Коновалова Варвара Сергеевна"]
[136,"Советский",null,"МБОУ СШ № 2 г. Красноярск",null,null,null,null,null,null,null,null,null,null,0,"неявка","Куликова Нина Юрьевна"]
[137,"Краевое_учреждение",null,"КГБОУ «Красноярская школа № 1» г. Красноярск",null,null,null,null,null,null,null,null,null,null,0,"неявка","Волкова Мария Дмитриевна"]
[138,"Советский",null,"МБОУ СШ № 2 г. Красноярск",null,null,null,null,null,null,null,null,null,null,0,"неявка","Сидоренко Наталья Анатольевна"]
[139,"Кировский",null,"МАОУ СШ № 55 г. Красноярск",null,null,null,null,null,null,null,null,null,null,0,"неявка","Петрова Анастасия Александровна"]
[140,"Советский",null,"МАОУ СШ № 91 г. Красноярск",null,null,null,null,null,null,null,null,null,null,0,"неявка","Буренкова Анна Валерьевна"]
[141,"Ленинский",null,"МАОУ СШ № 89 г. Красноярск",null,null,null,null,null,null,null,null,null,null,0,"неявка","Бронская Людмила Владимировна"]
[142,"Советский",null,"МАОУ СШ № 91 г. Красноярск",null,null,null,null,null,null,null,null,null,null,0,"неявка","Буренкова Анна Валерьевна"]
[143,"Ленинский",null,"МБОУ СШ № 44 г. Красноярск",null,null,null,null,null,null,null,null,null,null,0,"неявка","Новомирская Евгения Александровна"]